fUST/lending_fUST_20240811
["ID","MTS","AMOUNT","RATE_DAILY","PERIOD"]
[334606643,1723330145303,-833.78545195,0.00015751,2]
[334606644,1723330145322,-154.76133565,0.00015851,2]
[334606645,1723330145343,-882.73574636,0.00015851,2]
[334606646,1723330145364,-601.26975726,0.00015851,2]
[334606647,1723330145386,-3210.90813047,0.00015852,2]
[334606648,1723330145406,-998.50224663,0.00015928,2]
[334606649,1723330145430,-24900.0,0.00015929,2]
[334606650,1723330145450,-156.84792364,0.00015952,2]
[334606651,1723330145473,-157.0,0.00016038,2]
[334606652,1723330145497,-277.18370616,0.00016532,2]
[334606653,1723330145518,-159.886624,0.00016738,2]
[334606654,1723330145538,-159.886624,0.00016826,2]
[334606655,1723330145560,-159.886624,0.00016913,2]
[334606656,1723330145580,-609.149239,0.00016947,2]
[334606657,1723330145603,-159.886624,0.00017,2]
[334606658,1723330145625,-154.76012181,0.00017019,2]
[334606659,1723330145646,-159.886624,0.00017087,2]
[334606660,1723330145667,-159.886624,0.00017175,2]
[334606661,1723330145687,-420.0,0.00017219,2]
[334606662,1723330145708,-159.886624,0.00017262,2]
[334606663,1723330145730,-420.0,0.0001732,2]
[334606664,1723330145760,-159.886624,0.00017349,2]
[334606665,1723330145782,-159.886624,0.00017436,2]
[334606666,1723330145804,-159.886624,0.00017524,2]
[334606667,1723330145827,-159.886624,0.00017611,2]
[334606668,1723330145851,-1785.56146362,0.0001763,2]
[334606669,1723330145872,-761.42268704,0.0001784,2]
[334606670,1723330145893,-271.42971182,0.0001784,2]
[334606671,1723330145913,-519.48871163,0.00017882,2]
[334606672,1723330145933,-154.79103211,0.00017882,2]
[334606673,1723330145954,-694.62275433,0.00017882,2]
[334606674,1723330145974,-246.68428726,0.00017882,2]
[334606675,1723330145994,-1259.29480243,0.000179,2]
[334606676,1723330146017,-3050.16633573,0.00017962,2]
[334606677,1723330146351,-2239.33676511,0.00017962,2]
[334606678,1723330146371,-155.05619504,0.00018,2]
[334606679,1723330146392,-285.76886234,0.00018,2]
[334606680,1723330147398,8663.36345841,0.00015744,2]
[334606681,1723330148950,154.76012181,0.00015746,2]
[334606682,1723330150817,156.84792364,0.00015952,2]
[334606683,1723330154860,60.44831744,0.00012,2]
[334606684,1723330154882,195.3343184,0.00012,2]
[334606685,1723330154906,58.35328562,0.00012,2]
[334606686,1723330155143,-159.96841318,0.00018043,2]
[334606687,1723330155165,-250.3410689,0.00018043,2]
[334606688,1723330155187,-2678.84951749,0.00018215,2]
[334606689,1723330166057,387.472382,0.00014829,2]
[334606690,1723330166253,387.472382,0.00014833,2]
[334606691,1723330166446,387.472382,0.00014837,2]
[334606692,1723330166886,387.472382,0.00014841,2]
[334606693,1723330166944,387.472382,0.00014845,2]
[334606694,1723330167083,387.472382,0.00014849,2]
[334606695,1723330167318,387.472382,0.00014853,2]
[334606696,1723330167538,387.472382,0.00014857,2]
[334606697,1723330167725,387.472382,0.00014861,2]
[334606698,1723330167939,387.472382,0.00014865,2]
[334606699,1723330168174,387.472382,0.00014868,2]
[334606700,1723330168396,387.472382,0.00014872,2]
[334606701,1723330168582,387.472382,0.00014876,2]
[334606702,1723330168811,387.472382,0.0001488,2]
[334606703,1723330169034,387.472382,0.00014884,2]
[334606704,1723330169308,387.472382,0.00014888,2]
[334606705,1723330169620,387.472382,0.00014892,2]
[334606706,1723330169856,387.472382,0.00014896,2]
[334606707,1723330170062,387.472382,0.000149,2]
[334606708,1723330170276,387.472382,0.00014903,2]
[334606709,1723330176571,182.08031852,0.00012,2]
[334606710,1723330181813,612.88454401,0.00014,2]
[334606711,1723330184108,249.70408695,0.00015,2]
[334606712,1723330193516,612.41806934,0.00012,2]
[334606713,1723330195462,382.94570543,9.9e-05,60]
[334606714,1723330201035,433.00144094,0.00012,2]
[334606715,1723330203098,300.0,0.00025,60]
[334606716,1723330204703,200.0,0.00014545,2]
[334606870,1723330234967,382.94570543,0.00014545,60]
[334606872,1723330238700,-701.47743255,0.00015608,2]
[334606873,1723330238711,-244.59641755,0.00016,2]
[334606874,1723330238723,-277.3913797,0.000165,2]
[334606875,1723330238733,-154.7819678,0.00017,2]
[334606876,1723330238743,-3.9928024,0.00018314,2]
[334606877,1723330238766,-282.35331953,0.00018314,2]
[334606878,1723330238776,-372.655602,0.00018904,2]
[334606879,1723330238786,-2851.27810416,0.00018969,2]
[334606880,1723330238797,-155.01017471,0.00019153,2]
[334606881,1723330238811,-5239.32328819,0.00019154,2]
[334606882,1723330238820,-408.36824081,0.00019155,2]
[334606883,1723330238829,-300.0,0.00019166,2]
[334606884,1723330238839,-227.0,0.00019166,2]
[334606885,1723330238848,-156.14227066,0.00019177,2]
[334606886,1723330238857,-164.804335,0.00019178,2]
[334606887,1723330238867,-166.673228,0.00019178,2]
[334606888,1723330238876,-151.0,0.00019256,2]
[334606889,1723330238885,-151.0,0.00019256,2]
[334606890,1723330238895,-257.348718,0.00019256,2]
[334606891,1723330238904,-257.348718,0.00019256,2]
[334606892,1723330238914,-151.0,0.00019256,2]
[334606893,1723330238923,-151.0,0.00019256,2]
[334606894,1723330238932,-151.0,0.00019256,2]
[334606895,1723330238942,-151.0,0.00019256,2]
[334606896,1723330238955,-267.8664955,0.00019256,2]
[334606897,1723330238965,-453.4484536,0.00019256,2]
[334606898,1723330238975,-153.0,0.00019256,2]
[334606899,1723330238985,-294.4971025,0.00019256,2]
[334606900,1723330238994,-151.86659,0.00019451,2]
[334606901,1723330239004,-151.0,0.00019451,2]
[334606902,1723330239014,-153.0,0.00019452,2]
[334606903,1723330239023,-153.0,0.00019452,2]
[334606904,1723330239033,-153.0,0.00019452,2]
[334606905,1723330239043,-153.0,0.00019452,2]
[334606906,1723330239054,-153.0,0.00019452,2]
[334606907,1723330239063,-153.0,0.00019452,2]
[334606908,1723330239072,-153.0,0.00019452,2]
[334606909,1723330239082,-153.0,0.00019452,2]
[334606910,1723330239091,-153.0,0.00019452,2]
[334606911,1723330239101,-306.0,0.00019452,2]
[334606912,1723330239110,-153.0,0.00019452,2]
[334606913,1723330239119,-267.8664955,0.00019578,2]
[334606914,1723330239128,-189.9880137,0.00019578,2]
[334606915,1723330239138,-153.0,0.00019578,2]
[334606916,1723330239148,-519.58492228,0.00019721,2]
[334606917,1723330239157,-588.994205,0.00019726,2]
[334606918,1723330239168,-306.0,0.00019726,2]
[334606919,1723330239178,-207.2629816,0.00019726,2]
[334606920,1723330239188,-207.2629816,0.00019726,2]
[334606921,1723330239197,-207.2629816,0.00019726,2]
[334606922,1723330239206,-207.2629816,0.00019726,2]
[334606923,1723330239217,-207.2629816,0.00019726,2]
[334606924,1723330239227,-519.58492224,0.00019766,2]
[334606925,1723330239236,-519.58492224,0.00019811,2]
[334606926,1723330239246,-500.0,0.00019821,7]
[334606927,1723330239256,-500.0,0.00019821,7]
[334606928,1723330239266,-500.0,0.00019821,7]
[334606929,1723330239275,-500.0,0.00019821,7]
[334606930,1723330239286,-500.0,0.00019821,7]
[334606931,1723330239296,-500.0,0.00019821,7]
[334606932,1723330239310,-500.0,0.00019821,7]
[334606933,1723330239320,-542.31,0.00019821,7]
[334606934,1723330239331,-151.0,0.00019821,2]
[334606935,1723330239340,-218.163624,0.00019821,2]
[334606936,1723330239350,-151.0,0.00019821,2]
[334606937,1723330239359,-151.0,0.00019821,2]
[334606938,1723330239369,-151.0,0.00019821,2]
[334606939,1723330239378,-151.0,0.00019821,2]
[334606940,1723330239388,-151.0,0.00019821,2]
[334606941,1723330239397,-151.0,0.00019821,2]
[334606942,1723330239406,-151.0,0.00019821,2]
[334606943,1723330239416,-151.0,0.00019821,2]
[334606944,1723330239425,-257.348718,0.00019821,2]
[334606945,1723330239436,-257.348718,0.00019821,2]
[334606946,1723330239447,-151.0,0.00019821,2]
[334606947,1723330239457,-151.0,0.00019821,2]
[334606948,1723330239468,-151.0,0.00019821,2]
[334606949,1723330239479,-253.271448,0.00019821,2]
[334606950,1723330239489,-519.58492224,0.00019855,2]
[334606951,1723330239499,-519.58492224,0.000199,2]
[334606952,1723330239509,-200.0,0.00019973,2]
[334606953,1723330239520,-200.0,0.00019973,2]
[334606954,1723330239532,-500.0,0.00019977,2]
[334606955,1723330239543,-500.0,0.00019977,2]
[334606956,1723330239554,-500.0,0.00019977,2]
[334606957,1723330239565,-199.56367129,0.00019977,2]
[334606958,1723330239574,-500.0,0.00019977,2]
[334606959,1723330239583,-242.44028939,0.00019977,2]
[334606960,1723330239593,-500.0,0.00019977,2]
[334606961,1723330239602,-500.0,0.00019977,2]
[334606962,1723330239611,-500.0,0.00019977,2]
[334606963,1723330239620,-500.0,0.00019977,2]
[334606964,1723330239630,-500.0,0.00019977,2]
[334606965,1723330239639,-500.0,0.00019977,2]
[334606966,1723330239649,-500.0,0.00019977,2]
[334606967,1723330239659,-322.66514326,0.00019977,2]
[334606968,1723330239669,-500.0,0.00019977,2]
[334606969,1723330239678,-500.0,0.00019977,2]
[334606970,1723330239687,-500.0,0.00019977,2]
[334606971,1723330239697,-500.0,0.00019977,2]
[334606972,1723330239707,-500.0,0.00019977,2]
[334606973,1723330239718,-500.0,0.00019977,2]
[334606974,1723330239728,-571.4,0.00019977,2]
[334606975,1723330239738,-500.0,0.00019977,2]
[334606976,1723330239747,-500.0,0.00019977,2]
[334606977,1723330239757,-431.83849219,0.00019977,2]
[334606978,1723330239767,-500.0,0.00019977,2]
[334606979,1723330239776,-500.0,0.00019977,2]
[334606980,1723330239785,-500.0,0.00019977,2]
[334606981,1723330239795,-500.0,0.00019977,2]
[334606982,1723330239805,-500.0,0.00019977,2]
[334606983,1723330239814,-500.0,0.00019977,2]
[334606984,1723330239824,-527.12295329,0.00019977,2]
[334606985,1723330239833,-500.0,0.00019977,2]
[334606986,1723330239843,-500.0,0.00019977,2]
[334606987,1723330239853,-500.0,0.00019977,2]
[334606988,1723330239863,-500.0,0.00019977,2]
[334606989,1723330239874,-500.0,0.00019977,2]
[334606990,1723330239883,-500.0,0.00019977,2]
[334606991,1723330239895,-500.0,0.00019977,2]
[334606992,1723330239905,-500.0,0.00019977,2]
[334606993,1723330239915,-500.0,0.00019977,2]
[334606994,1723330239924,-354.34930792,0.00019977,2]
[334606995,1723330240159,-145.65069208,0.00019977,2]
[334606996,1723330240174,-500.0,0.00019977,2]
[334606997,1723330240183,-500.0,0.00019977,2]
[334606998,1723330240193,-500.0,0.00019977,2]
[334606999,1723330240203,-500.0,0.00019977,2]
[334607000,1723330240215,-500.0,0.00019977,2]
[334607001,1723330240224,-500.0,0.00019977,2]
[334607002,1723330240245,-500.0,0.00019977,2]
[334607003,1723330240256,-500.0,0.00019977,2]
[334607004,1723330240268,-500.0,0.00019977,2]
[334607005,1723330240278,-500.0,0.00019977,2]
[334607006,1723330240288,-500.0,0.00019977,2]
[334607007,1723330240299,-500.0,0.00019977,2]
[334607008,1723330240309,-500.0,0.00019977,2]
[334607009,1723330240318,-500.0,0.00019977,2]
[334607010,1723330240328,-500.0,0.00019977,2]
[334607011,1723330240338,-500.0,0.00019977,2]
[334607012,1723330240349,-500.0,0.00019977,2]
[334607013,1723330240359,-500.0,0.00019977,2]
[334607014,1723330240368,-500.0,0.00019977,2]
[334607015,1723330240378,-500.0,0.00019977,2]
[334607016,1723330240388,-500.0,0.00019977,2]
[334607017,1723330240398,-500.0,0.00019977,2]
[334607018,1723330240408,-500.0,0.00019977,2]
[334607019,1723330240418,-500.0,0.00019977,2]
[334607020,1723330240428,-500.0,0.00019977,2]
[334607021,1723330240438,-500.0,0.00019977,2]
[334607022,1723330240449,-500.0,0.00019977,2]
[334607023,1723330240459,-500.0,0.00019977,2]
[334607024,1723330240469,-500.0,0.00019977,2]
[334607025,1723330240479,-500.0,0.00019977,2]
[334607026,1723330240489,-500.0,0.00019977,2]
[334607027,1723330240499,-500.0,0.00019977,2]
[334607028,1723330240508,-500.0,0.00019977,2]
[334607029,1723330240518,-493.24355717,0.00019977,2]
[334607030,1723330240527,-500.0,0.00019977,2]
[334607031,1723330240537,-500.0,0.00019977,2]
[334607032,1723330240546,-500.0,0.00019977,2]
[334607033,1723330240557,-500.0,0.00019977,2]
[334607034,1723330240566,-649.99999999,0.00019977,2]
[334607035,1723330240576,-500.0,0.00019977,2]
[334607036,1723330240586,-245.595576,0.00019977,2]
[334607037,1723330240596,-245.595576,0.00019977,2]
[334607038,1723330240605,-245.595576,0.00019977,2]
[334607039,1723330240615,-245.595576,0.00019977,2]
[334607040,1723330240624,-151.0,0.00019977,2]
[334607041,1723330240634,-151.0,0.00019977,2]
[334607042,1723330240643,-153.14715,0.00019977,2]
[334607043,1723330240653,-151.0,0.00019977,2]
[334607044,1723330240662,-57265.4991499,0.00019978,2]
[334607045,1723330240671,-245.595576,0.00019978,2]
[334607046,1723330240681,-245.595576,0.00019978,2]
[334607047,1723330240691,-151.0,0.00019978,2]
[334607048,1723330240700,-151.0,0.00019978,2]
[334607049,1723330240710,-245.595576,0.00019979,2]
[334607050,1723330240719,-245.595576,0.00019979,2]
[334607051,1723330240729,-192.598064,0.00019979,2]
[334607052,1723330240739,-57265.4991499,0.00019979,2]
[334607053,1723330240748,-151.0,0.00019988,2]
[334607054,1723330240757,-151.0,0.00019988,2]
[334607055,1723330240767,-151.0,0.00019988,2]
[334607056,1723330240776,-151.0,0.00019988,2]
[334607057,1723330240786,-151.0,0.00019988,2]
[334607058,1723330240795,-151.0,0.00019988,2]
[334607059,1723330240808,-257.348718,0.00019988,2]
[334607060,1723330240818,-257.348718,0.00019988,2]
[334607063,1723330240830,-257.348718,0.00019988,2]
[334607065,1723330240839,-257.348718,0.00019988,2]
[334607067,1723330240851,-257.348718,0.00019988,2]
[334607069,1723330240861,-257.348718,0.00019988,2]
[334607071,1723330240871,-151.0,0.00019988,2]
[334607073,1723330240884,-151.0,0.00019988,2]
[334607076,1723330240895,-151.0,0.00019988,2]
[334607078,1723330240905,-184.55439,0.00019988,2]
[334607082,1723330241119,-151.0,0.00019988,2]
[334607083,1723330241131,-151.0,0.00019988,2]
[334607084,1723330241142,-151.0,0.00019988,2]
[334607085,1723330241152,-151.0,0.00019989,2]
[334607086,1723330241162,-151.0,0.00019989,2]
[334607087,1723330241176,-151.0,0.00019989,2]
[334607088,1723330241187,-151.0,0.00019989,2]
[334607089,1723330241199,-151.0,0.00019989,2]
[334607090,1723330241211,-151.0,0.00019989,2]
[334607091,1723330241223,-151.0,0.00019989,2]
[334607092,1723330241234,-151.0,0.00019989,2]
[334607093,1723330241247,-151.0,0.00019989,2]
[334607094,1723330241257,-151.0,0.00019989,2]
[334607095,1723330241268,-154.126804,0.00019989,2]
[334607096,1723330241277,-151.0,0.00019989,2]
[334607097,1723330241287,-185.997894,0.00019989,2]
[334607098,1723330241297,-185.997894,0.00019989,2]
[334607099,1723330241306,-185.997894,0.00019989,2]
[334607100,1723330241315,-185.997894,0.00019989,2]
[334607101,1723330241325,-185.997894,0.00019989,2]
[334607102,1723330241335,-185.997894,0.00019989,2]
[334607103,1723330241344,-185.997894,0.00019989,2]
[334607104,1723330241354,-185.997894,0.00019989,2]
[334607105,1723330241363,-151.0,0.00019989,2]
[334607106,1723330241372,-175.799009,0.00019989,2]
[334607107,1723330241382,-151.0,0.00019989,2]
[334607108,1723330241391,-151.0,0.00019989,2]
[334607109,1723330241400,-151.0,0.00019989,2]
[334607110,1723330241410,-151.0,0.00019989,2]
[334607111,1723330241420,-151.0,0.00019989,2]
[334607112,1723330241431,-151.0,0.00019989,2]
[334607113,1723330241441,-151.0,0.00019989,2]
[334607114,1723330241451,-151.0,0.00019989,2]
[334607115,1723330241460,-151.0,0.00019989,2]
[334607116,1723330241470,-151.0,0.00019989,2]
[334607117,1723330241479,-151.0,0.00019989,2]
[334607118,1723330241491,-151.0,0.00019989,2]
[334607119,1723330241502,-151.0,0.00019989,2]
[334607120,1723330241512,-151.0,0.00019989,2]
[334607121,1723330241523,-199.946382,0.00019989,2]
[334607122,1723330241535,-151.0,0.00019989,2]
[334607123,1723330241546,-151.0,0.00019989,2]
[334607124,1723330241558,-151.0,0.00019989,2]
[334607125,1723330241571,-151.0,0.00019989,2]
[334607126,1723330241581,-151.0,0.00019989,2]
[334607127,1723330241590,-151.0,0.00019989,2]
[334607128,1723330241599,-218.36716595,0.00019989,2]
[334607129,1723330241609,-500.0,0.00019989,2]
[334607130,1723330241618,-500.0,0.00019989,2]
[334607131,1723330241627,-500.0,0.00019989,2]
[334607132,1723330241636,-323.88860913,0.00019989,2]
[334607133,1723330241645,-500.0,0.00019989,2]
[334607134,1723330241655,-500.0,0.00019989,2]
[334607135,1723330241664,-500.0,0.00019989,2]
[334607136,1723330241673,-500.0,0.00019989,2]
[334607137,1723330241682,-500.0,0.00019989,2]
[334607138,1723330241692,-500.0,0.00019989,2]
[334607139,1723330241701,-302.55128192,0.00019989,2]
[334607140,1723330241710,-500.0,0.00019989,2]
[334607141,1723330241719,-500.0,0.00019989,2]
[334607142,1723330241729,-500.0,0.00019989,2]
[334607143,1723330241738,-500.0,0.00019989,2]
[334607144,1723330241747,-500.0,0.00019989,2]
[334607145,1723330241756,-500.0,0.00019989,2]
[334607146,1723330241767,-151.0,0.00019989,2]
[334607147,1723330241776,-500.0,0.00019989,2]
[334607148,1723330241785,-500.0,0.00019989,2]
[334607149,1723330241794,-500.0,0.00019989,2]
[334607150,1723330241804,-257.348718,0.00019989,2]
[334607151,1723330241815,-257.348718,0.00019989,2]
[334607152,1723330241824,-151.0,0.00019989,2]
[334607153,1723330241833,-244.855428,0.00019989,2]
[334607154,1723330241843,-245.595576,0.00019989,2]
[334607155,1723330241852,-2014.60528684,0.00019989,10]
[334607156,1723330241862,-245.595576,0.00019989,2]
[334607157,1723330241871,-10436.60757496,0.0001999,11]
[334607158,1723330241881,-2606.52015398,0.0001999,11]
[334607159,1723330241890,-151.0,0.0001999,2]
[334607160,1723330241900,-185.997894,0.0001999,2]
[334607161,1723330241909,-185.997894,0.0001999,2]
[334607162,1723330241919,-185.997894,0.0001999,2]
[334607163,1723330241929,-185.997894,0.0001999,2]
[334607164,1723330241941,-151.0,0.0001999,2]
[334607165,1723330241951,-151.0,0.0001999,2]
[334607166,1723330241964,-190.90772,0.0001999,2]
[334607167,1723330241973,-151.0,0.0001999,2]
[334607168,1723330241984,-151.0,0.0001999,2]
[334607169,1723330241997,-151.0,0.0001999,2]
[334607170,1723330242007,-260.802634,0.0001999,2]
[334607171,1723330242019,-151.0,0.0001999,2]
[334607172,1723330242030,-279.211472,0.0001999,2]
[334607173,1723330242041,-171796.49745,0.0001999,2]
[334607174,1723330242051,-151.0,0.0001999,2]
[334607175,1723330242063,-151.0,0.0001999,2]
[334607176,1723330242072,-257.348718,0.0001999,2]
[334607177,1723330242081,-257.348718,0.0001999,2]
[334607178,1723330242091,-257.348718,0.0001999,2]
[334607179,1723330242100,-257.348718,0.0001999,2]
[334607180,1723330242109,-151.0,0.0001999,2]
[334607181,1723330242118,-151.0,0.0001999,2]
[334607182,1723330242129,-245.595576,0.0001999,2]
[334607183,1723330242138,-245.595576,0.0001999,2]
[334607184,1723330242148,-245.595576,0.0001999,2]
[334607185,1723330242158,-245.595576,0.0001999,2]
[334607186,1723330242170,-151.0,0.00019999,2]
[334607187,1723330242181,-151.0,0.00019999,2]
[334607188,1723330242190,-151.0,0.00019999,2]
[334607189,1723330242200,-257.348718,0.00019999,2]
[334607190,1723330242211,-257.348718,0.00019999,2]
[334607191,1723330242221,-151.0,0.00019999,2]
[334607192,1723330242231,-2279.95423235,0.00019999,3]
[334607193,1723330242241,-10494.9163161,0.0002,2]
[334607194,1723330242252,-98779.40072256,0.0002,2]
[334607195,1723330242261,-1900.0,0.0002,2]
[334607196,1723330242271,-1444.82566449,0.0002,2]
[334607197,1723330242280,-156.42647328,0.0002,2]
[334607198,1723330242290,-294.2333485,0.0002,2]
[334607199,1723330242301,-508.95861788,0.0002,2]
[334607200,1723330242311,-336.42315708,0.0002,2]
[334607201,1723330242321,-150.112233,0.0002,2]
[334607202,1723330242331,-3000.0,0.0002,2]
[334607203,1723330242341,-185.997894,0.0002,2]
[334607204,1723330242351,-185.997894,0.0002,2]
[334607205,1723330242361,-185.997894,0.0002,2]
[334607206,1723330242371,-185.997894,0.0002,2]
[334607207,1723330242383,-185.997894,0.0002,2]
[334607208,1723330242393,-185.997894,0.0002,2]
[334607209,1723330242403,-151.0,0.0002,2]
[334607210,1723330242413,-151.0,0.0002,2]
[334607211,1723330242423,-151.0,0.0002,2]
[334607212,1723330242434,-151.0,0.0002,2]
[334607213,1723330242444,-182.810736,0.0002,2]
[334607214,1723330242454,-257.348718,0.0002,2]
[334607215,1723330242464,-257.348719,0.0002,2]
[334607216,1723330242474,-151.0,0.0002,2]
[334607217,1723330242484,-245.595576,0.0002,2]
[334607218,1723330242494,-245.595576,0.0002,2]
[334607219,1723330242503,-245.595576,0.0002,2]
[334607220,1723330242513,-245.595576,0.0002,2]
[334607221,1723330242523,-245.595576,0.0002,2]
[334607222,1723330242534,-245.595576,0.0002,2]
[334607223,1723330242545,-150.112233,0.000202,4]
[334607224,1723330242557,-153.0,0.00020274,2]
[334607225,1723330242566,-153.0,0.00020274,2]
[334607226,1723330242575,-153.0,0.00020274,2]
[334607227,1723330242584,-329.5511926,0.00020274,2]
[334607228,1723330242594,-494.60608226,0.0002028,2]
[334607229,1723330242603,-240.97809475,0.0002028,2]
[334607230,1723330242613,-507.0,0.00020287,2]
[334607231,1723330242622,-1412.0,0.00020287,2]
[334607232,1723330242632,-150.112233,0.000204,3]
[334607233,1723330242642,-1351.3983993,0.0002052,2]
[334607234,1723330242653,-185.997894,0.00020536,2]
[334607235,1723330242663,-185.9979,0.00020536,2]
[334607236,1723330242673,-1855.6,0.00020547,5]
[334607237,1723330242683,-1855.6,0.00020547,5]
[334607238,1723330242693,-1855.6,0.00020547,5]
[334607239,1723330242703,-1855.6,0.00020547,5]
[334607240,1723330242714,-1855.6,0.00020547,5]
[334607241,1723330242724,-1855.6,0.00020547,5]
[334607242,1723330242733,-1855.6,0.00020547,5]
[334607243,1723330242743,-150.112233,0.000206,3]
[334607244,1723330242752,-2693.43006915,0.00020601,2]
[334607245,1723330243102,-30479.15656857,0.00020601,2]
[334607246,1723330243113,-3302.36128068,0.00020601,2]
[334607247,1723330243125,-1327.19141704,0.00020601,2]
[334607249,1723330243687,-808.91134605,0.00019155,2]
[334607250,1723330243698,-200.0,0.00019973,2]
[334607251,1723330243707,-10177.08072958,0.00020601,2]
[334607357,1723330245365,181.86828772,0.00014545,7]
[334607488,1723330246773,-3146.50457518,0.00019102,2]
[334607491,1723330246784,-2092.81871301,0.00019102,2]
[334607493,1723330246794,-200.0,0.00019973,2]
[334607495,1723330246803,-200.0,0.00019973,2]
[334607496,1723330246812,-151.0,0.00019977,2]
[334607498,1723330246822,-1555.33367956,0.00020601,2]
[334607501,1723330246833,-1434.22409934,0.00020601,2]
[334607853,1723330256495,336.05027019,0.00014545,2]
[334607854,1723330273396,150.5,0.0002082,120]
[334607855,1723330273864,150.5,0.0002081,120]
[334607856,1723330274346,150.5,0.000208,120]
[334607857,1723330274997,150.5,0.0002319,120]
[334607858,1723330275046,199.51471253,0.0001763,60]
[334607859,1723330275254,169.39,0.0002318,120]
[334607862,1723330350325,273.37336231,9.9e-05,2]
[334607863,1723330389599,165.306604,0.00014247,2]
[334607865,1723330476529,199.51471253,0.00014247,60]
[334607866,1723330510974,199.51471253,0.00017269,60]
[334607867,1723330566046,199.51471253,0.00017269,60]
[334607868,1723330627009,199.51471253,0.00020932,60]
[334607873,1723330722539,1145.107,0.0002673,120]
[334607874,1723330722664,1145.107,0.0002673,120]
[334607875,1723330722717,1145.107,0.0002673,120]
[334607876,1723330722780,1145.107,0.0002673,120]
[334607877,1723330722821,1145.108,0.0002673,120]
[334607881,1723330828001,182.28563981,0.0002673,120]
[334607883,1723330866567,202.783618,0.00014247,2]
[334607884,1723330921770,-930.0,0.00015952,3]
[334607885,1723330924174,166.08656695,0.00014247,2]
[334607886,1723330927810,4019.47859249,0.00014247,2]
[334607887,1723330929542,404.34085405,0.00014247,2]
[334607888,1723330936133,1314.74615822,0.00014247,2]
[334607889,1723330944757,1630.23174338,0.00014247,2]
[334607890,1723330950512,206.54114914,0.00014247,2]
[334607892,1723331011529,199.51471253,0.00014247,60]
[334607893,1723331026499,199.51471253,0.00014247,60]
[334607894,1723331078011,199.51471253,0.00017269,60]
[334607896,1723331136117,-238.30733337,0.00015746,2]
[334607897,1723331158184,199.51471253,0.00020932,60]
[334607898,1723331250520,-243.58226389,0.00015712,2]
[334607899,1723331250541,-154.79103211,0.00015712,2]
[334607900,1723331250563,-336.2837431,0.00015781,2]
[334607901,1723331250584,-114.64393159,0.00016072,2]
[334607902,1723331251096,-85.72873641,0.00016072,2]
[334607903,1723331251118,-300.0,0.00016152,2]
[334607904,1723331251143,-841.35460482,0.00016153,2]
[334607905,1723331329798,273.37336231,9.9e-05,2]
[334607906,1723331334695,165.356588,0.00014247,2]
[334607907,1723331345217,273.37336231,9.9e-05,2]
[334607908,1723331350150,-610.9118254,0.00015658,2]
[334607909,1723331350172,-1349.24584919,0.00016095,3]
[334607910,1723331350195,-300.0,0.00016152,2]
[334607911,1723331350220,-24058.64539518,0.00016153,2]
[334607912,1723331350242,-849.39914621,0.00016159,2]
[334607913,1723331350269,-167.911171,0.00016183,2]
[334607914,1723331350291,-277.3913797,0.00016532,2]
[334607915,1723331350313,-194.513158,0.0001658,2]
[334607916,1723331350335,-194.513158,0.00016621,2]